fUST/lending_fUST_20250819
["ID","MTS","AMOUNT","RATE_DAILY","PERIOD"]
[380208758,1755610251769,-480.0,0.00019726,2]
[380208759,1755610251778,-759.02,0.00019726,2]
[380208760,1755610251787,-480.0,0.00019726,2]
[380208761,1755610251797,-151.0,0.00019726,2]
[380208762,1755610251807,-480.0,0.00019726,2]
[380208763,1755610251816,-480.0,0.00019726,2]
[380208764,1755610251826,-480.0,0.00019726,2]
[380208765,1755610251835,-151.0,0.00019726,2]
[380208766,1755610251845,-480.0,0.00019726,2]
[380208767,1755610251854,-480.0,0.00019726,2]
[380208768,1755610251863,-151.0,0.00019726,2]
[380208769,1755610251873,-480.0,0.00019726,2]
[380208770,1755610251882,-480.0,0.00019726,2]
[380208771,1755610251891,-151.0,0.00019726,2]
[380208772,1755610251900,-1472.38,0.00019726,2]
[380208773,1755610251910,-151.0,0.00019726,2]
[380208774,1755610251919,-480.0,0.00019726,2]
[380208775,1755610251929,-480.0,0.00019726,2]
[380208776,1755610251938,-496.95,0.00019726,2]
[380208777,1755610251947,-480.0,0.00019726,2]
[380208778,1755610251964,-480.0,0.00019726,2]
[380208779,1755610251973,-480.0,0.00019726,2]
[380208780,1755610251983,-550.68107786,0.00019726,2]
[380208781,1755610251993,-1233.86,0.00019726,2]
[380208782,1755610252002,-480.0,0.00019726,2]
[380208783,1755610252012,-480.0,0.00019726,2]
[380208784,1755610252023,-480.0,0.00019726,2]
[380208785,1755610252033,-591.03,0.00019726,2]
[380208786,1755610252042,-438.90224332,0.00019726,2]
[380208787,1755610252052,-318.08374984,0.00019726,2]
[380208788,1755610252061,-480.0,0.00019726,2]
[380208789,1755610252070,-231.782763,0.00019726,2]
[380208790,1755610252080,-564.65,0.00019726,2]
[380208791,1755610252089,-151.0,0.00019726,2]
[380208792,1755610252099,-231.782763,0.00019726,2]
[380208793,1755610252108,-151.0,0.00019726,2]
[380208794,1755610252118,-480.0,0.00019726,2]
[380208795,1755610252127,-231.782763,0.00019726,2]
[380208796,1755610252136,-2607.19,0.00019726,2]
[380208797,1755610252145,-1054.66,0.00019726,2]
[380208798,1755610252155,-231.782763,0.00019726,2]
[380208799,1755610252164,-151.0,0.00019726,2]
[380208800,1755610252173,-442.25842071,0.00019726,2]
[380208801,1755610252183,-467.53304859,0.00019726,2]
[380208802,1755610252192,-861.75,0.00019726,2]
[380208803,1755610252202,-878.15,0.00019726,2]
[380208804,1755610252218,-800.83,0.00019726,2]
[380208805,1755610252228,-480.0,0.00019726,2]
[380208806,1755610252238,-480.0,0.00019726,2]
[380208807,1755610252253,-151.0,0.00019726,2]
[380208808,1755610252264,-508.85,0.00019726,2]
[380208809,1755610252274,-480.0,0.00019726,2]
[380208810,1755610252285,-151.0,0.00019726,2]
[380208811,1755610252298,-151.0,0.00019726,2]
[380208812,1755610252309,-1035.13,0.00019726,2]
[380208813,1755610252319,-151.0,0.00019726,2]
[380208814,1755610252331,-1633.69,0.00019726,2]
[380208815,1755610252344,-151.0,0.00019726,2]
[380208816,1755610252355,-151.0,0.00019726,2]
[380208817,1755610252366,-480.0,0.00019726,2]
[380208818,1755610252376,-151.0,0.00019726,2]
[380208819,1755610252385,-1972.94,0.00019726,2]
[380208820,1755610252395,-151.0,0.00019726,2]
[380208821,1755610252405,-151.0,0.00019726,2]
[380208822,1755610252416,-151.0,0.00019726,2]
[380208823,1755610252426,-480.0,0.00019726,2]
[380208824,1755610252436,-480.0,0.00019726,2]
[380208825,1755610252447,-480.0,0.00019726,2]
[380208826,1755610252465,-151.0,0.00019726,2]
[380208827,1755610252479,-1871.95,0.00019726,2]
[380208828,1755610252491,-410.87988343,0.00019726,2]
[380208829,1755610252504,-480.0,0.00019726,2]
[380208830,1755610252513,-480.0,0.00019726,2]
[380208831,1755610252523,-480.0,0.00019726,2]
[380208832,1755610252533,-588.26,0.00019726,2]
[380208833,1755610252542,-480.0,0.00019726,2]
[380208834,1755610252552,-480.0,0.00019726,2]
[380208835,1755610252561,-480.0,0.00019726,2]
[380208836,1755610252570,-480.0,0.00019726,2]
[380208837,1755610252579,-480.0,0.00019726,2]
[380208838,1755610252589,-258.74418226,0.00019726,2]
[380208839,1755610252599,-1226.99,0.00019726,2]
[380208840,1755610252609,-480.0,0.00019726,2]
[380208841,1755610252619,-151.0,0.00019726,2]
[380208842,1755610252628,-480.0,0.00019726,2]
[380208843,1755610252638,-151.0,0.00019726,2]
[380208844,1755610252647,-151.0,0.00019726,2]
[380208845,1755610252657,-673.33,0.00019726,2]
[380208846,1755610252667,-480.0,0.00019726,2]
[380208847,1755610252677,-480.0,0.00019726,2]
[380208848,1755610252686,-480.0,0.00019726,2]
[380208849,1755610252695,-151.0,0.00019726,2]
[380208850,1755610252705,-480.0,0.00019726,2]
[380208851,1755610252720,-1472.69,0.00019726,2]
[380208852,1755610252730,-480.0,0.00019726,2]
[380208853,1755610252739,-762.62,0.00019726,2]
[380208854,1755610252748,-480.0,0.00019726,2]
[380208855,1755610252759,-523.1,0.00019726,2]
[380208856,1755610252768,-1129.89,0.00019726,2]
[380208857,1755610252778,-480.0,0.00019726,2]
[380208858,1755610252788,-480.0,0.00019726,2]
[380208859,1755610252798,-480.0,0.00019726,2]
[380208860,1755610252808,-694.31,0.00019726,2]
[380208861,1755610252817,-480.0,0.00019726,2]
[380208862,1755610252826,-480.0,0.00019726,2]
[380208863,1755610252835,-480.0,0.00019726,2]
[380208864,1755610252844,-1402.99,0.00019726,2]
[380208865,1755610252853,-480.0,0.00019726,2]
[380208866,1755610252863,-480.0,0.00019726,2]
[380208867,1755610252873,-151.0,0.00019726,2]
[380208868,1755610252884,-480.0,0.00019726,2]
[380208869,1755610252893,-1770.15,0.00019726,2]
[380208870,1755610252903,-480.0,0.00019726,2]
[380208871,1755610252913,-445.24592914,0.00019726,2]
[380208872,1755610252923,-480.0,0.00019726,2]
[380208873,1755610252932,-3043.79,0.00019726,2]
[380208874,1755610252942,-1042.11,0.00019726,2]
[380208875,1755610252951,-480.0,0.00019726,2]
[380208876,1755610252966,-480.0,0.00019726,2]
[380208877,1755610252976,-588.81,0.00019726,2]
[380208878,1755610252985,-924.34,0.00019726,2]
[380208879,1755610252995,-480.0,0.00019726,2]
[380208880,1755610253004,-748.03,0.00019726,2]
[380208881,1755610253013,-1414.85,0.00019726,2]
[380208882,1755610253023,-3156.48,0.00019726,2]
[380208883,1755610253032,-1032.67,0.00019726,2]
[380208884,1755610253041,-592.34953818,0.00019726,2]
[380208885,1755610253050,-480.0,0.00019726,2]
[380208886,1755610253060,-3913.96,0.00019726,2]
[380208887,1755610253070,-10832.98,0.00019726,2]
[380208888,1755610253081,-480.0,0.00019726,2]
[380208889,1755610253090,-923.43,0.00019726,2]
[380208890,1755610253100,-908.06,0.00019726,2]
[380208891,1755610253109,-480.0,0.00019726,2]
[380208892,1755610253118,-2594.66,0.00019726,2]
[380208893,1755610253127,-480.0,0.00019726,2]
[380208894,1755610253137,-1055.92,0.00019726,2]
[380208895,1755610253146,-527.47,0.00019726,2]
[380208896,1755610253155,-480.0,0.00019726,2]
[380208897,1755610253164,-480.0,0.00019726,2]
[380208898,1755610253173,-480.0,0.00019726,2]
[380208899,1755610253183,-480.0,0.00019726,2]
[380208900,1755610253192,-480.0,0.00019726,2]
[380208901,1755610253201,-779.51,0.00019726,2]
[380208902,1755610253214,-151.0,0.00019726,2]
[380208903,1755610253223,-151.0,0.00019726,2]
[380208904,1755610253232,-480.0,0.00019726,2]
[380208905,1755610253241,-460.0,0.00019726,2]
[380208906,1755610253255,-292.09808594,0.00019726,2]
[380208907,1755610253265,-592.93,0.00019726,2]
[380208908,1755610253274,-480.0,0.00019726,2]
[380208909,1755610253286,-480.0,0.00019726,2]
[380208910,1755610253297,-440.78812035,0.00019726,2]
[380208911,1755610253306,-480.0,0.00019726,2]
[380208912,1755610253326,-151.0,0.00019726,2]
[380208913,1755610253336,-151.0,0.00019726,2]
[380208914,1755610253346,-2422.74,0.00019726,2]
[380208915,1755610253355,-1368.83,0.00019726,2]
[380208916,1755610253365,-480.0,0.00019726,2]
[380208917,1755610253375,-480.0,0.00019726,2]
[380208918,1755610253385,-480.0,0.00019726,2]
[380208919,1755610253394,-480.0,0.00019726,2]
[380208920,1755610253403,-480.0,0.00019726,2]
[380208921,1755610253413,-480.0,0.00019726,2]
[380208922,1755610253422,-480.0,0.00019726,2]
[380208923,1755610253431,-480.0,0.00019726,2]
[380208924,1755610253440,-480.0,0.00019726,2]
[380208925,1755610253449,-518.14,0.00019726,2]
[380208926,1755610253464,-480.0,0.00019726,2]
[380208927,1755610253473,-480.0,0.00019726,2]
[380208928,1755610253482,-480.0,0.00019726,2]
[380208929,1755610253491,-480.0,0.00019726,2]
[380208930,1755610253499,-551.16080314,0.00019726,2]
[380208931,1755610253508,-480.0,0.00019726,2]
[380208932,1755610253519,-480.0,0.00019726,2]
[380208933,1755610253529,-479.14191258,0.00019726,2]
[380208934,1755610253538,-151.0,0.00019726,2]
[380208935,1755610253548,-480.0,0.00019726,2]
[380208936,1755610253558,-480.0,0.00019726,2]
[380208937,1755610253568,-480.0,0.00019726,2]
[380208938,1755610253581,-1262.49,0.00019726,2]
[380208939,1755610253592,-303.39387725,0.00019726,2]
[380208940,1755610253602,-5048.39711886,0.00019726,2]
[380208941,1755610253948,-6375.54288114,0.00019726,2]
[380208942,1755610253962,-480.0,0.00019726,2]
[380208943,1755610253974,-480.0,0.00019726,2]
[380208944,1755610253986,-480.0,0.00019726,2]
[380208945,1755610253995,-480.0,0.00019726,2]
[380208946,1755610254004,-151.0,0.00019726,2]
[380208947,1755610254014,-480.0,0.00019726,2]
[380208948,1755610254023,-777.09,0.00019726,2]
[380208949,1755610254032,-151.0,0.00019726,2]
[380208950,1755610254042,-480.0,0.00019726,2]
[380208951,1755610254051,-480.0,0.00019726,2]
[380208952,1755610254060,-480.0,0.00019726,2]
[380208953,1755610254070,-151.274819,0.00019726,2]
[380208954,1755610254079,-480.0,0.00019726,2]
[380208955,1755610254088,-480.0,0.00019726,2]
[380208956,1755610254098,-151.0,0.00019726,2]
[380208957,1755610254108,-482.47,0.00019726,2]
[380208958,1755610254117,-151.0,0.00019726,2]
[380208959,1755610254126,-872.95,0.00019726,2]
[380208960,1755610254135,-480.0,0.00019726,2]
[380208961,1755610254145,-1143.71,0.00019726,2]
[380208962,1755610254154,-151.0,0.00019726,2]
[380208963,1755610254163,-480.0,0.00019726,2]
[380208964,1755610254172,-833.89,0.00019726,2]
[380208965,1755610254182,-151.0,0.00019726,2]
[380208966,1755610254192,-151.0,0.00019726,2]
[380208967,1755610254201,-708.41,0.00019726,2]
[380208968,1755610254215,-151.0,0.00019726,2]
[380208969,1755610254224,-480.0,0.00019726,2]
[380208970,1755610254234,-151.0,0.00019726,2]
[380208971,1755610254244,-975.2,0.00019726,2]
[380208972,1755610254258,-716.73,0.00019726,2]
[380208973,1755610254267,-289.19531519,0.00019726,2]
[380208974,1755610254277,-480.0,0.00019726,2]
[380208975,1755610254286,-1486.28,0.00019726,2]
[380208976,1755610254298,-480.0,0.00019726,2]
[380208977,1755610254307,-151.0,0.00019726,2]
[380208978,1755610254317,-480.0,0.00019726,2]
[380208979,1755610254328,-2508.14,0.00019726,2]
[380208980,1755610254338,-480.0,0.00019726,2]
[380208981,1755610254348,-480.0,0.00019726,2]
[380208982,1755610254357,-151.0,0.00019726,2]
[380208983,1755610254367,-480.0,0.00019726,2]
[380208984,1755610254376,-480.0,0.00019726,2]
[380208985,1755610254386,-480.0,0.00019726,2]
[380208986,1755610254396,-480.0,0.00019726,2]
[380208987,1755610254405,-151.0,0.00019726,2]
[380208988,1755610254415,-480.0,0.00019726,2]
[380208989,1755610254425,-151.0,0.00019726,2]
[380208990,1755610254434,-480.0,0.00019726,2]
[380208991,1755610254444,-2536.44,0.00019726,2]
[380208992,1755610254453,-480.0,0.00019726,2]
[380208993,1755610254467,-539.26,0.00019726,2]
[380208994,1755610254477,-500.0,0.00019726,2]
[380208995,1755610254486,-151.0,0.00019726,2]
[380208996,1755610254496,-480.0,0.00019726,2]
[380208997,1755610254505,-151.0,0.00019726,2]
[380208998,1755610254515,-480.0,0.00019726,2]
[380208999,1755610254525,-480.0,0.00019726,2]
[380209000,1755610254534,-4363.27,0.00019726,2]
[380209001,1755610254544,-480.0,0.00019726,2]
[380209002,1755610254553,-480.0,0.00019726,2]
[380209003,1755610254563,-480.0,0.00019726,2]
[380209004,1755610254572,-480.0,0.00019726,2]
[380209005,1755610254581,-480.0,0.00019726,2]
[380209006,1755610254591,-480.0,0.00019726,2]
[380209007,1755610254601,-151.0,0.00019726,2]
[380209008,1755610254610,-480.0,0.00019726,2]
[380209009,1755610254619,-480.0,0.00019726,2]
[380209010,1755610254628,-480.0,0.00019726,2]
[380209011,1755610254637,-151.0,0.00019726,2]
[380209012,1755610254647,-480.0,0.00019726,2]
[380209013,1755610254656,-480.0,0.00019726,2]
[380209014,1755610254665,-151.51889,0.00019726,2]
[380209015,1755610254674,-159.64599541,0.00019726,2]
[380209016,1755610254684,-151.0,0.00019726,2]
[380209017,1755610254693,-151.0,0.00019726,2]
[380209018,1755610254702,-480.0,0.00019726,2]
[380209019,1755610254716,-151.0,0.00019726,2]
[380209020,1755610254726,-480.0,0.00019726,2]
[380209021,1755610254735,-480.0,0.00019726,2]
[380209022,1755610254745,-480.0,0.00019726,2]
[380209023,1755610254754,-480.0,0.00019726,2]
[380209024,1755610254763,-151.0,0.00019726,2]
[380209025,1755610254772,-480.0,0.00019726,2]
[380209026,1755610254781,-1168.63,0.00019726,2]
[380209027,1755610254790,-480.0,0.00019726,2]
[380209028,1755610254800,-1162.09,0.00019726,2]
[380209029,1755610254809,-151.0,0.00019726,2]
[380209030,1755610254818,-974.95,0.00019726,2]
[380209031,1755610254827,-480.0,0.00019726,2]
[380209032,1755610254837,-480.0,0.00019726,2]
[380209033,1755610254845,-151.0,0.00019726,2]
[380209034,1755610254854,-480.0,0.00019726,2]
[380209035,1755610254863,-583.64674142,0.00019726,2]
[380209036,1755610254872,-480.0,0.00019726,2]
[380209037,1755610254882,-151.0,0.00019726,2]
[380209038,1755610254891,-152.573358,0.00019726,2]
[380209039,1755610254900,-480.0,0.00019726,2]
[380209040,1755610254909,-260.130393,0.00019726,2]
[380209041,1755610254920,-480.0,0.00019726,2]
[380209042,1755610254929,-535.49650536,0.00019745,2]
[380209043,1755610254938,-4580.34659546,0.00019763,2]
[380209044,1755610254947,-501.6669573,0.00019773,2]
[380209045,1755610254960,-500.18888263,0.00019773,2]
[380209046,1755610254969,-500.0,0.00019773,2]
[380209047,1755610254978,-500.0,0.00019773,2]
[380209048,1755610254986,-500.0,0.00019773,2]
[380209049,1755610254995,-500.0,0.00019773,2]
[380209050,1755610255004,-269.95031563,0.00019773,2]
[380209051,1755610255013,-500.0,0.00019773,2]
[380209052,1755610255022,-151.0,0.000198,2]
[380209053,1755610255031,-151.0,0.000198,2]
[380209054,1755610255040,-418.782207,0.00019863,2]
[380209055,1755610255050,-151.0,0.000199,2]
[380209056,1755610255059,-5200.44939726,0.000199,2]
[380209057,1755610255069,-591.58889954,0.0001993,2]
[380209058,1755610255079,-500.47208219,0.00019973,2]
[380209059,1755610255088,-500.0,0.00019973,2]
[380209060,1755610255098,-500.0,0.00019973,2]
[380209061,1755610255107,-500.0,0.00019973,2]
[380209062,1755610255116,-25376.13424407,0.0002,2]
[380209063,1755610255125,-2981.05877791,0.0002,2]
[380209064,1755610255134,-480.0,0.0002,2]
[380209065,1755610255143,-480.0,0.0002,2]
[380209066,1755610255152,-480.0,0.0002,2]
[380209067,1755610255162,-480.0,0.0002,2]
[380209068,1755610255171,-480.0,0.0002,2]
[380209069,1755610255179,-480.0,0.0002,2]
[380209070,1755610255189,-480.0,0.0002,2]
[380209071,1755610255199,-480.0,0.0002,2]
[380209072,1755610255213,-480.0,0.0002,2]
[380209073,1755610255222,-480.0,0.0002,2]
[380209074,1755610255231,-480.0,0.0002,2]
[380209075,1755610255241,-480.0,0.0002,2]
[380209076,1755610255251,-480.0,0.0002,2]
[380209077,1755610255260,-151.0,0.0002,2]
[380209078,1755610255269,-151.0,0.0002,2]
[380209079,1755610255280,-151.0,0.0002,2]
[380209080,1755610255289,-480.0,0.0002,2]
[380209081,1755610255298,-480.0,0.0002,2]
[380209082,1755610255308,-480.0,0.0002,2]
[380209083,1755610255317,-480.0,0.0002,2]
[380209084,1755610255326,-480.0,0.0002,2]
[380209085,1755610255336,-151.0,0.0002,2]
[380209086,1755610255345,-480.0,0.0002,2]
[380209087,1755610255355,-151.0,0.0002,2]
[380209088,1755610255364,-151.0,0.0002,2]
[380209089,1755610255373,-480.0,0.0002,2]
[380209090,1755610255382,-383.58735649,0.0002,2]
[380209091,1755610255391,-480.0,0.0002,2]
[380209092,1755610255400,-480.0,0.0002,2]
[380209093,1755610255410,-480.0,0.0002,2]
[380209094,1755610255419,-480.0,0.0002,2]
[380209095,1755610255429,-503.9,0.0002,2]
[380209096,1755610255439,-480.0,0.0002,2]
[380209097,1755610255448,-480.0,0.0002,2]
[380209098,1755610255462,-480.0,0.0002,2]
[380209099,1755610255470,-480.0,0.0002,2]
[380209100,1755610255479,-514.34,0.0002,2]
[380209101,1755610255488,-480.0,0.0002,2]
[380209102,1755610255497,-480.0,0.0002,2]
[380209103,1755610255506,-480.0,0.0002,2]
[380209104,1755610255515,-480.0,0.0002,2]
[380209105,1755610255523,-151.0,0.0002,2]
[380209106,1755610255533,-225.65149616,0.0002,2]
[380209107,1755610255543,-480.0,0.0002,2]
[380209108,1755610255552,-480.0,0.0002,2]
[380209109,1755610255561,-480.0,0.0002,2]
[380209110,1755610255570,-1386.49,0.0002,2]
[380209111,1755610255579,-480.0,0.0002,2]
[380209112,1755610255588,-480.0,0.0002,2]
[380209113,1755610255597,-496.73,0.0002,2]
[380209114,1755610255606,-151.0,0.0002,2]
[380209115,1755610255616,-151.0,0.0002,2]
[380209116,1755610255625,-831.67,0.0002,2]
[380209117,1755610255635,-480.0,0.0002,2]
[380209118,1755610255644,-502.36,0.0002,2]
[380209119,1755610255654,-510.78,0.0002,2]
[380209120,1755610255662,-151.0,0.0002,2]
[380209121,1755610255672,-480.0,0.0002,2]
[380209122,1755610255681,-480.0,0.0002,2]
[380209123,1755610255690,-480.0,0.0002,2]
[380209124,1755610255700,-480.0,0.0002,2]
[380209125,1755610255712,-480.0,0.0002,2]
[380209126,1755610255721,-524.62551342,0.0002,2]
[380209127,1755610255730,-480.0,0.0002,2]
[380209128,1755610255739,-151.0,0.0002,2]
[380209129,1755610255747,-480.0,0.0002,2]
[380209130,1755610255754,-151.0,0.0002,2]
[380209131,1755610255762,-151.0,0.0002,2]
[380209132,1755610255769,-480.0,0.0002,2]
[380209133,1755610255778,-151.0,0.0002,2]
[380209134,1755610255787,-480.0,0.0002,2]
[380209135,1755610255796,-151.0,0.0002,2]
[380209136,1755610255805,-480.0,0.0002,2]
[380209137,1755610255814,-519.33,0.0002,2]
[380209138,1755610255823,-480.0,0.0002,2]
[380209139,1755610255833,-151.0,0.0002,2]
[380209140,1755610255842,-151.0,0.0002,2]
[380209141,1755610255852,-480.0,0.0002,2]
[380209142,1755610255861,-482.89,0.0002,2]
[380209143,1755610255871,-480.0,0.0002,2]
[380209144,1755610255880,-480.0,0.0002,2]
[380209145,1755610255890,-480.0,0.0002,2]
[380209146,1755610255899,-480.0,0.0002,2]
[380209147,1755610255908,-501.18,0.0002,2]
[380209148,1755610255917,-480.0,0.0002,2]
[380209149,1755610255927,-7285.62,0.0002,2]
[380209150,1755610255936,-480.0,0.0002,2]
[380209151,1755610255945,-480.0,0.0002,2]
[380209152,1755610255955,-480.0,0.0002,2]
[380209153,1755610255967,-480.0,0.0002,2]
[380209154,1755610255976,-480.0,0.0002,2]
[380209155,1755610255985,-151.0,0.0002,2]
[380209156,1755610255995,-151.0,0.0002,2]
[380209157,1755610256005,-480.0,0.0002,2]
[380209158,1755610256014,-151.0,0.0002,2]
[380209159,1755610256023,-480.0,0.0002,2]
[380209160,1755610256150,-480.0,0.0002,2]
[380209161,1755610256160,-480.0,0.0002,2]
[380209162,1755610256170,-480.0,0.0002,2]
[380209163,1755610256179,-480.0,0.0002,2]
[380209164,1755610256189,-480.0,0.0002,2]
[380209165,1755610256198,-480.0,0.0002,2]
[380209166,1755610256210,-480.0,0.0002,2]
[380209167,1755610256219,-480.0,0.0002,2]
[380209168,1755610256229,-480.0,0.0002,2]
[380209169,1755610256238,-383.14133038,0.0002,2]
[380209170,1755610256248,-480.0,0.0002,2]
[380209171,1755610256257,-151.0,0.0002,2]
[380209172,1755610256266,-1271.97,0.0002,2]
[380209173,1755610256279,-151.0,0.0002,2]
[380209174,1755610256291,-151.0,0.0002,2]
[380209175,1755610256302,-151.0,0.0002,2]
[380209176,1755610256312,-538.00559162,0.0002,2]
[380209177,1755610256321,-1207.29,0.0002,2]
[380209178,1755610256331,-480.0,0.0002,2]
[380209179,1755610256341,-151.0,0.0002,2]
[380209180,1755610256352,-480.0,0.0002,2]
[380209181,1755610256361,-1928.88,0.0002,2]
[380209182,1755610256371,-480.0,0.0002,2]
[380209183,1755610256380,-480.0,0.0002,2]
[380209184,1755610256389,-1018.9,0.0002,2]
[380209185,1755610256400,-619.22,0.0002,2]
[380209186,1755610256409,-480.0,0.0002,2]
[380209187,1755610256419,-151.0,0.0002,2]
[380209188,1755610256428,-480.0,0.0002,2]
[380209189,1755610256438,-480.0,0.0002,2]
[380209190,1755610256447,-325.55836064,0.0002,2]
[380209191,1755610256460,-460.0,0.0002,2]
[380209192,1755610256470,-151.0,0.0002,2]
[380209193,1755610256479,-151.0,0.0002,2]
[380209194,1755610256488,-632.27,0.0002,2]
[380209195,1755610256498,-480.0,0.0002,2]
[380209196,1755610256508,-151.0,0.0002,2]
[380209197,1755610256517,-151.0,0.0002,2]
[380209198,1755610256527,-151.0,0.0002,2]
[380209199,1755610256535,-480.0,0.0002,2]
[380209200,1755610256544,-151.0,0.0002,2]
[380209201,1755610256554,-480.0,0.0002,2]
[380209202,1755610256563,-480.0,0.0002,2]
[380209203,1755610256572,-480.0,0.0002,2]
[380209204,1755610256581,-480.0,0.0002,2]
[380209205,1755610256591,-480.0,0.0002,2]
[380209206,1755610256600,-480.0,0.0002,2]
[380209207,1755610256610,-480.0,0.0002,2]
[380209208,1755610256620,-537.5,0.0002,2]
[380209209,1755610256629,-480.0,0.0002,2]
[380209210,1755610256639,-759.02,0.0002,2]
[380209211,1755610256649,-480.0,0.0002,2]
[380209212,1755610256658,-480.0,0.0002,2]
[380209213,1755610256667,-480.0,0.0002,2]
[380209214,1755610256677,-480.0,0.0002,2]
[380209215,1755610256686,-151.0,0.0002,2]
[380209216,1755610256695,-480.0,0.0002,2]
[380209217,1755610256705,-480.0,0.0002,2]
[380209218,1755610256717,-480.0,0.0002,2]
[380209219,1755610256726,-480.0,0.0002,2]
[380209220,1755610256735,-1472.38,0.0002,2]
[380209221,1755610256745,-480.0,0.0002,2]
[380209222,1755610256754,-151.0,0.0002,2]
[380209223,1755610256764,-480.0,0.0002,2]
[380209224,1755610256773,-496.95,0.0002,2]
[380209225,1755610256783,-480.0,0.0002,2]
[380209226,1755610256793,-1000.000001,0.0002,2]
[380209227,1755610256802,-480.0,0.0002,2]
[380209228,1755610256812,-480.0,0.0002,2]
[380209229,1755610256822,-1233.86,0.0002,2]
[380209230,1755610256831,-480.0,0.0002,2]
[380209231,1755610256841,-480.0,0.0002,2]
[380209232,1755610256850,-480.0,0.0002,2]
[380209233,1755610256859,-591.03,0.0002,2]
[380209234,1755610256869,-231.782763,0.0002,2]
[380209235,1755610256878,-564.65,0.0002,2]
[380209236,1755610256887,-151.0,0.0002,2]
[380209237,1755610256897,-231.782763,0.0002,2]
[380209238,1755610256906,-480.0,0.0002,2]
[380209239,1755610256915,-151.0,0.0002,2]
[380209240,1755610256925,-231.782763,0.0002,2]
[380209241,1755610256935,-2607.19,0.0002,2]
[380209242,1755610256945,-1054.66,0.0002,2]
[380209243,1755610256954,-231.782763,0.0002,2]
[380209244,1755610256968,-173.637761,0.0002,2]
[380209245,1755610256977,-861.75,0.0002,2]
[380209246,1755610256986,-878.15,0.0002,2]
[380209247,1755610256996,-800.83,0.0002,2]
[380209248,1755610257005,-480.0,0.0002,2]
[380209249,1755610257014,-480.0,0.0002,2]
[380209250,1755610257023,-508.85,0.0002,2]
[380209251,1755610257032,-480.0,0.0002,2]
[380209252,1755610257042,-151.0,0.0002,2]
[380209253,1755610257050,-151.0,0.0002,2]
[380209254,1755610257061,-1035.13,0.0002,2]
[380209255,1755610257070,-151.0,0.0002,2]
[380209256,1755610257080,-1633.69,0.0002,2]
[380209257,1755610257089,-151.0,0.0002,2]